bitfinex/quotes_SOLUSD_20251019
["timestamp","ask_amount","ask_price","bid_price","bid_amount"]
[1760906994310,10.87647521,189.91,189.9,62.69]
[1760906994487,10.87647521,189.93,189.9,62.69]
[1760906995089,11.58647521,189.93,189.9,62.69]
[1760906995404,11.58647521,189.93,189.9,62.0]
[1760906995712,13.66579675,189.93,189.9,62.0]
[1760906996706,2.07932154,189.92,189.9,62.0]
[1760906996911,13.66579675,189.91,189.9,62.0]
[1760906997089,13.66579675,189.91,189.9,0.2]
[1760906999909,18.9314489,189.91,189.9,0.2]
[1760907002011,16.85212736,189.91,189.9,0.2]
[1760907002214,18.9314489,189.91,189.9,0.2]
[1760907004217,13.66579675,189.91,189.9,0.2]
[1760907004408,22.88,189.93,189.9,0.89]
[1760907004611,11.58647521,189.94,189.9,0.89]
[1760907004914,10.87647521,189.95,189.91,2.76932154]
[1760907005112,2.78932154,190.0,189.94,2.07932154]
[1760907005318,2.07932154,189.98,189.93,2.07932154]
[1760907005507,13.66579675,189.97,189.92,2.76932154]
[1760907005817,13.66579675,189.97,189.93,0.69]
[1760907006018,11.58647521,189.97,189.93,0.69]
[1760907006500,10.87647521,189.97,189.94,0.69]
[1760907006696,11.58647521,189.97,189.93,5.26509384]
[1760907007019,11.58647521,189.97,189.93,5.95509384]
[1760907007210,10.87647521,189.97,189.93,5.95509384]
[1760907007995,10.87647521,189.97,189.93,8.03441538]
[1760907008198,11.58647521,189.97,189.93,8.03441538]
[1760907008397,11.58647521,189.97,189.93,5.95509384]
[1760907008597,12.95579675,189.95,189.9,0.2]
[1760907008815,2.07932154,189.94,189.9,0.2]
[1760907009015,12.95579675,189.92,189.9,0.2]
[1760907009402,13.66579675,189.92,189.9,0.2]
[1760907009912,11.58647521,189.91,189.9,0.2]
[1760907010520,13.66579675,189.91,189.9,0.2]
[1760907012819,12.95579675,189.91,189.9,0.2]
[1760907013125,33.75647521,189.93,189.9,0.9]
[1760907013420,33.75647521,189.93,189.9,0.2]
[1760907013618,33.75647521,189.93,189.91,0.7]
[1760907013925,33.75647521,189.93,189.9,0.2]
[1760907014224,2.73932154,189.92,189.9,0.2]
[1760907014916,2.73932154,189.91,189.9,0.2]
[1760907016412,8.00497369,189.91,189.9,0.2]
[1760907017605,2.07932154,189.92,189.9,0.2]
[1760907017800,35.83579675,189.93,189.9,0.2]
[1760907017997,35.83579675,189.93,189.9,0.88]
[1760907018826,36.49579675,189.93,189.9,0.2]
[1760907019121,35.83579675,189.93,189.9,0.88]
[1760907019320,35.83579675,189.93,189.9,62.0]
[1760907021730,12.95579675,189.96,189.91,0.68]
[1760907021910,10.87647521,189.94,189.9,67.26590255]
[1760907022105,11.53647521,189.94,189.9,67.26590255]
[1760907022316,13.61579675,189.94,189.9,67.26590255]
[1760907022518,13.61579675,189.94,189.9,67.94590255]
[1760907024030,25.61932154,189.96,189.91,0.68]
[1760907024225,2.07932154,189.94,189.9,62.0]
[1760907024427,2.73932154,189.93,189.9,62.0]
[1760907024609,2.07932154,189.94,189.9,67.26592316]
[1760907024808,2.73932154,189.94,189.9,67.26592316]
[1760907025937,2.73932154,189.94,189.9,67.94592316]
[1760907026134,0.66,189.94,189.9,67.94592316]
[1760907028533,12.95579675,189.95,189.9,67.94592316]
[1760907028924,13.61579675,189.95,189.9,67.94592316]
[1760907030436,12.95579675,189.95,189.9,67.94592316]
[1760907030734,0.66,189.94,189.9,67.94592316]
[1760907030940,5.92344559,189.99,189.93,2.07932154]
[1760907031121,13.61579675,189.98,189.93,61.8]
[1760907031322,22.88,189.97,189.93,62.48]
[1760907031522,10.87647521,189.96,189.93,61.8]
[1760907031721,34.41647521,189.96,189.93,61.8]
[1760907032137,36.49579675,189.96,189.93,61.8]
[1760907032437,34.41647521,189.96,189.93,61.8]
[1760907033146,37.00459771,189.96,189.93,61.8]
[1760907033328,0.66,189.95,189.93,61.8]
[1760907035330,10.87647521,189.94,189.93,61.8]
[1760907035839,11.53647521,189.94,189.93,61.8]
[1760907036338,10.87647521,189.94,189.93,61.8]
[1760907036523,11.53647521,189.94,189.93,61.8]
[1760907036723,11.53647521,189.94,189.9,67.94590117]
[1760907038043,14.12459771,189.94,189.9,67.26590117]
[1760907038250,0.66,189.93,189.9,62.0]
[1760907038449,14.12459771,189.91,189.9,0.2]
[1760907038738,14.78459771,189.91,189.9,0.2]
[1760907039723,3.2481225,189.92,189.9,0.88]
[1760907039937,33.75647521,189.93,189.9,0.88]
[1760907040131,37.00459771,189.93,189.9,0.88]
[1760907040942,22.88,189.93,189.91,0.68]
[1760907041246,22.88,189.93,189.9,5.4658547]
[1760907041416,22.88,189.93,189.91,0.68]
[1760907042037,22.88,189.93,189.9,5.4658547]
[1760907042357,0.66,189.92,189.9,0.2]
[1760907042557,22.88,189.93,189.9,0.88]
[1760907042947,22.88,189.93,189.9,0.2]
[1760907045065,22.88,189.93,189.9,5.46584332]
[1760907045255,22.88,189.93,189.9,6.17584332]
[1760907045659,23.56,189.93,189.9,5.46584332]
[1760907046340,3.2481225,189.91,189.9,0.2]
[1760907046568,26.1281225,189.91,189.9,0.2]
[1760907046766,26.8081225,189.91,189.9,0.2]
[1760907047959,26.1281225,189.91,189.9,0.2]
[1760907048341,0.68,189.96,189.9,5.46582745]
[1760907048546,37.00459771,189.94,189.9,62.0]
[1760907048867,0.68,189.93,189.9,62.0]
[1760907049665,3.2481225,189.93,189.9,62.0]
[1760907049853,3.9281225,189.92,189.9,62.0]
[1760907050050,3.9281225,189.91,189.9,62.0]
[1760907050565,37.68459771,189.91,189.9,62.0]
[1760907051144,34.43647521,189.91,189.9,62.0]
[1760907051343,37.68459771,189.91,189.9,62.0]
[1760907053967,34.43647521,189.91,189.9,62.0]
[1760907054364,37.68459771,189.91,189.9,0.2]
[1760907054561,34.43647521,189.91,189.9,0.2]
[1760907054765,37.68459771,189.91,189.9,0.2]
[1760907055167,34.43647521,189.91,189.9,0.2]
[1760907056967,33.75647521,189.91,189.9,0.2]
[1760907058267,34.43647521,189.91,189.9,0.2]
[1760907058476,37.68459771,189.91,189.9,0.2]
[1760907058970,33.75647521,189.91,189.9,0.2]
[1760907061166,22.88,189.91,189.9,0.2]
[1760907061367,33.75647521,189.94,189.9,6.17592943]
[1760907061760,34.43647521,189.94,189.9,6.17592943]
[1760907061962,11.55647521,189.98,189.91,3.9581225]
[1760907062160,14.80459771,189.98,189.92,3.9581225]
[1760907062365,37.68459771,189.98,189.92,65.7581225]
[1760907062563,42.26844617,189.98,189.92,71.02336788]
[1760907062777,10.87647521,189.96,189.92,71.02336788]
[1760907062980,11.55647521,189.96,189.92,71.02336788]
[1760907063977,10.87647521,189.96,189.92,70.31336788]
[1760907064280,10.87647521,189.97,189.93,3.9581225]
[1760907064461,11.55647521,189.97,189.93,9.2230049]
[1760907065672,10.87647521,189.97,189.94,3.9581225]
[1760907066274,10.87647521,189.97,189.95,0.71]
[1760907066770,11.55647521,189.97,189.94,3.2481225]
[1760907066967,0.68,189.96,189.93,5.2648824]
[1760907068996,0.68,189.96,189.93,67.0648824]
[1760907069374,10.87647521,189.97,189.93,67.7748824]
[1760907069574,10.87647521,189.97,189.94,0.71]
[1760907070489,14.80459771,190.0,189.95,0.71]
[1760907070693,10.87647521,189.98,189.94,3.2481225]
[1760907071091,14.12459771,190.0,189.94,3.2481225]
[1760907071287,0.68,189.98,189.94,3.2481225]
[1760907071482,11.54647521,189.97,189.93,71.0230049]
[1760907072593,10.87647521,189.95,189.93,61.8]
[1760907072793,11.54647521,189.94,189.93,61.8]
[1760907072991,10.87647521,189.93,189.91,61.8]
[1760907073200,3.9181225,189.92,189.9,0.2]
[1760907073494,3.2481225,189.91,189.9,0.2]
[1760907073887,3.9181225,189.91,189.9,0.2]
[1760907077486,9.18377465,189.91,189.9,0.2]
[1760907077803,42.94024986,189.91,189.9,0.2]
[1760907078888,46.18837236,189.91,189.9,0.2]
[1760907079200,10.87647521,189.9,189.89,0.2]
[1760907079379,17.37272021,189.9,189.89,0.2]
[1760907079581,18.07272021,189.9,189.89,0.2]
[1760907079998,10.87647521,189.86,189.79,0.2]
[1760907080199,3.2481225,189.8,189.79,0.2]
[1760907080703,3.2481225,189.81,189.79,0.2]
[1760907081282,10.87647521,189.82,189.79,0.86]
[1760907081488,3.2481225,189.81,189.79,0.2]
[1760907083104,10.87647521,189.82,189.79,0.2]
[1760907083401,22.88,189.83,189.79,5.46893358]
[1760907083601,22.88,189.82,189.8,0.66]
[1760907083794,22.88,189.82,189.79,5.46893358]
[1760907083994,22.88,189.82,189.79,6.12893358]
[1760907085287,26.8281225,189.82,189.79,0.2]
[1760907086806,26.8281225,189.82,189.79,5.46890321]
[1760907087986,0.7,189.81,189.79,0.2]
[1760907088191,26.8281225,189.82,189.79,0.2]
[1760907088594,26.1281225,189.82,189.79,0.2]
[1760907088808,3.9481225,189.81,189.79,0.2]
[1760907089407,26.1281225,189.82,189.79,5.46897522]
[1760907089610,26.8281225,189.82,189.79,67.26897522]
[1760907090399,10.87647521,189.83,189.79,67.92897522]
[1760907090589,14.82459771,189.83,189.79,67.92897522]
[1760907092195,10.87647521,189.83,189.8,0.66]
[1760907093211,10.87647521,189.83,189.8,5.92854051]
[1760907094109,10.87647521,189.83,189.8,5.26854051]
[1760907094316,11.57647521,189.83,189.8,5.26854051]
[1760907094493,22.88,189.84,189.81,3.9081225]
[1760907094699,22.88,189.84,189.81,64.54100514]
[1760907094902,22.88,189.84,189.82,0.66]
[1760907095212,0.7,189.86,189.83,2.08100514]
[1760907095400,0.7,189.86,189.82,2.74100514]
[1760907096510,0.7,189.86,189.83,5.26787125]
[1760907098231,10.87647521,189.87,189.83,8.00887639]
[1760907098511,11.57647521,189.87,189.83,69.80887639]
[1760907099417,11.57647521,189.87,189.83,67.72787125]
[1760907101411,10.87647521,189.87,189.83,67.06787125]
[1760907101815,10.87647521,189.87,189.83,67.72787125]
[1760907102008,11.57647521,189.87,189.83,67.72787125]
[1760907102622,0.7,189.86,189.83,67.06787125]
[1760907105121,10.87647521,189.87,189.83,67.72787125]
[1760907105308,11.54647521,189.87,189.83,67.72787125]
[1760907105510,13.62748035,189.87,189.83,67.06787125]
[1760907105828,0.67,189.86,189.83,67.06787125]
[1760907106423,12.95748035,189.87,189.83,61.8]
[1760907106600,0.67,189.85,189.83,61.8]
[1760907107137,2.75100514,189.84,189.83,61.8]
[1760907107333,36.50748035,189.84,189.83,61.8]
[1760907108200,33.75647521,189.84,189.83,61.8]
[1760907108403,22.88,189.84,189.83,61.8]
[1760907108607,25.63100514,189.84,189.83,61.8]
[1760907110624,23.55,189.84,189.83,61.8]
[1760907111025,22.88,189.84,189.83,61.8]
[1760907112133,2.08100514,189.86,189.83,67.06784622]
[1760907112604,2.75100514,189.86,189.83,67.06784622]
[1760907113040,2.08100514,189.86,189.83,61.8]
[1760907113227,35.83748035,189.84,189.83,61.8]
[1760907113406,36.50748035,189.84,189.83,61.8]
[1760907115919,36.50748035,189.84,189.8,61.8]
[1760907116141,10.87647521,189.82,189.8,61.8]
[1760907116432,11.54647521,189.82,189.8,61.8]
[1760907117331,10.87647521,189.82,189.8,61.8]
[1760907119616,13.62748035,189.81,189.8,61.8]
[1760907120320,13.62748035,189.81,189.79,0.2]
[1760907120530,2.08100514,189.8,189.79,0.2]
[1760907120738,2.08100514,189.8,189.79,62.0]
[1760907120739,13.62748035,189.8,189.79,62.0]
[1760907122936,13.62748035,189.8,189.79,0.2]
[1760907126043,18.89618424,189.8,189.79,0.2]
[1760907128255,23.10525629,189.8,189.79,0.2]
[1760907128628,10.87647521,189.79,189.78,0.2]
[1760907128835,12.95748035,189.79,189.78,0.2]
[1760907129041,13.62748035,189.79,189.78,0.2]
[1760907130529,18.89646185,189.79,189.78,0.2]
[1760907136451,18.22646185,189.79,189.78,0.2]
[1760907136754,18.94646185,189.79,189.78,0.2]
[1760907141151,18.22646185,189.79,189.78,0.2]
[1760907143158,18.94646185,189.79,189.78,0.2]
[1760907144355,18.22646185,189.79,189.78,0.2]
[1760907144561,10.87647521,189.79,189.78,0.87]
[1760907144756,33.75647521,189.79,189.78,0.87]
[1760907145457,35.83748035,189.79,189.78,0.87]
[1760907145760,35.83748035,189.79,189.78,0.2]
[1760907152160,33.75647521,189.79,189.78,0.87]
[1760907153056,10.87647521,189.8,189.78,0.87]
[1760907156652,10.87647521,189.8,189.78,5.46922249]
[1760907156846,22.88,189.81,189.79,3.92341753]
[1760907157053,22.88,189.81,189.8,0.67]
[1760907158164,10.87647521,189.84,189.8,5.93870389]
[1760907158348,33.75647521,189.84,189.81,0.67]
[1760907161350,33.75647521,189.84,189.8,8.52212142]
[1760907161546,33.75647521,189.84,189.81,0.67]
[1760907161753,33.75647521,189.84,189.8,8.52212142]
[1760907161957,33.75647521,189.84,189.8,9.19212142]
[1760907162170,34.47647521,189.84,189.8,9.19212142]
[1760907162852,34.47647521,189.84,189.8,70.99212142]
[1760907168069,33.75647521,189.84,189.8,67.06870389]
[1760907168269,14.12989274,189.81,189.8,61.8]
[1760907168473,14.78989274,189.81,189.8,61.8]
[1760907168776,10.87647521,189.8,189.78,62.0]
[1760907168959,11.53647521,189.8,189.78,0.2]
[1760907169776,11.53647521,189.8,189.78,5.4691671]
[1760907169955,3.25341753,189.81,189.78,5.4691671]
[1760907170152,3.91341753,189.81,189.78,5.4691671]
[1760907170356,0.66,189.8,189.78,5.4691671]
[1760907171472,3.91341753,189.81,189.78,5.4691671]
[1760907174475,3.25341753,189.81,189.78,5.4691671]
[1760907174666,3.91341753,189.81,189.78,5.4691671]
[1760907174862,3.25341753,189.79,189.78,0.2]
[1760907175069,14.12989274,189.79,189.78,0.2]
[1760907175276,14.78989274,189.79,189.78,0.2]
[1760907177082,20.05887424,189.79,189.78,0.2]
[1760907177777,33.75647521,189.79,189.78,0.2]
[1760907180476,34.41647521,189.79,189.78,0.2]
[1760907180794,42.93887424,189.79,189.78,0.2]
[1760907180984,20.05887424,189.79,189.78,0.2]
[1760907181657,42.93887424,189.79,189.78,0.2]
[1760907181864,20.05887424,189.79,189.78,0.2]
[1760907183266,42.93887424,189.79,189.78,0.2]
[1760907183458,20.05887424,189.79,189.78,0.2]
[1760907185381,42.93887424,189.79,189.78,0.2]
[1760907185964,14.12989274,189.79,189.78,0.2]
[1760907186160,37.00989274,189.79,189.78,0.2]
[1760907188083,33.75647521,189.79,189.78,0.2]
[1760907188988,0.66,189.85,189.78,9.39267667]
[1760907189171,14.12989274,189.84,189.79,3.92341753]
[1760907189380,14.12989274,189.82,189.78,0.2]
[1760907189687,14.12989274,189.79,189.78,0.2]
[1760907192484,10.87647521,189.79,189.78,0.2]
[1760907192788,13.16829075,189.85,189.78,9.44267667]
[1760907192789,0.68,189.84,189.78,9.44267667]
[1760907192979,22.88,189.82,189.79,3.25341753]
[1760907193178,22.88,189.82,189.79,3.97341753]
[1760907193890,22.88,189.82,189.79,9.24231553]
[1760907194390,22.88,189.84,189.81,3.25341753]
[1760907194566,22.88,189.83,189.8,3.95341753]
[1760907194766,22.88,189.83,189.8,0.7]
[1760907194970,22.88,189.83,189.8,3.95341753]
[1760907195388,22.88,189.83,189.81,0.7]
[1760907196994,22.88,189.83,189.81,5.96841507]
[1760907197695,10.87647521,189.85,189.82,0.7]
[1760907197883,10.87647521,189.85,189.82,62.5]
[1760907199193,10.87647521,189.85,189.82,61.8]
[1760907199386,11.56647521,189.85,189.82,61.8]
[1760907200795,10.87647521,189.85,189.82,61.8]
[1760907200974,3.94341753,189.84,189.8,67.06868341]
[1760907202291,3.94341753,189.83,189.8,67.06868341]
[1760907202598,0.69,189.82,189.8,67.06868341]
[1760907203313,14.81989274,189.81,189.8,61.8]
[1760907203477,14.12989274,189.81,189.78,62.0]
[1760907203677,5.26736091,189.85,189.79,3.95341753]
[1760907203678,10.87647521,189.83,189.79,3.95341753]
[1760907203894,10.87647521,189.83,189.79,3.25341753]
[1760907204077,10.87647521,189.83,189.8,0.7]
[1760907204282,10.87647521,189.83,189.8,5.26868495]
[1760907204482,10.87647521,189.84,189.81,0.7]
[1760907204806,11.56647521,189.84,189.8,5.26868495]
[1760907204985,11.56647521,189.84,189.8,5.96868495]
[1760907205905,10.87647521,189.84,189.81,0.7]
[1760907206391,3.25341753,189.85,189.81,0.7]
[1760907206577,3.94341753,189.85,189.81,62.5]
[1760907207004,22.88,189.86,189.82,3.95341753]
[1760907207185,23.57,189.86,189.82,3.95341753]
[1760907208097,0.69,189.85,189.82,5.26804887]
[1760907208302,11.56647521,189.85,189.82,5.26804887]
[1760907209706,0.69,189.87,189.83,0.7]
[1760907210301,0.69,189.87,189.82,70.3214664]
[1760907210488,14.12989274,189.88,189.82,71.0214664]
[1760907210692,0.69,189.86,189.82,71.0214664]
[1760907211088,0.69,189.87,189.82,70.3214664]
[1760907211287,0.69,189.87,189.82,71.0214664]
[1760907211503,0.69,189.87,189.83,0.7]
[1760907212296,0.69,189.86,189.84,5.26759376]
[1760907213306,0.69,189.86,189.83,5.26787125]
[1760907214388,0.69,189.85,189.83,5.26787125]
[1760907214703,10.87647521,189.86,189.83,5.26787125]
[1760907215101,11.56647521,189.86,189.83,5.26787125]
[1760907215698,11.56647521,189.86,189.83,67.06787125]
[1760907218609,10.87647521,189.86,189.83,67.76787125]
[1760907218802,0.69,189.87,189.83,69.84880852]
[1760907219415,0.69,189.86,189.83,67.06787125]
[1760907219601,13.64741248,189.85,189.83,67.06787125]
[1760907219913,11.56647521,189.85,189.83,5.26787125]
[1760907220597,0.69,189.84,189.82,5.26814877]
[1760907220797,0.69,189.84,189.82,67.06814877]
[1760907221117,12.95741248,189.83,189.79,72.67647521]
[1760907221322,0.69,189.82,189.79,61.8]
[1760907221531,11.56647521,189.81,189.79,67.06889335]
[1760907222195,11.56647521,189.81,189.79,5.26889335]
[1760907222406,2.77093727,189.8,189.78,0.2]
[1760907222605,12.95741248,189.79,189.78,0.2]
[1760907223021,13.64741248,189.79,189.78,0.2]
[1760907223799,18.91639398,189.79,189.78,0.2]
[1760907230134,13.64741248,189.79,189.78,0.2]
[1760907233629,41.79639398,189.79,189.78,0.2]
[1760907235527,18.91639398,189.79,189.78,0.2]
[1760907236121,41.79639398,189.79,189.78,0.2]
[1760907236322,18.91639398,189.79,189.78,0.2]
[1760907237040,41.79639398,189.79,189.78,0.2]
[1760907237214,18.91639398,189.79,189.78,0.2]
[1760907237519,41.79639398,189.79,189.78,0.2]
[1760907237723,18.91639398,189.79,189.78,0.2]
[1760907241432,2.08093727,189.79,189.78,0.2]
[1760907241616,35.83741248,189.79,189.78,0.2]
[1760907242032,33.75647521,189.79,189.78,0.2]
[1760907242213,12.95741248,189.79,189.78,0.2]
[1760907242614,13.62741248,189.79,189.78,0.2]
[1760907243029,12.95741248,189.79,189.78,0.2]
[1760907244015,13.62741248,189.79,189.78,0.2]
[1760907244427,12.95741248,189.79,189.78,0.2]
[1760907244621,13.62741248,189.79,189.78,0.2]
[1760907245417,12.95741248,189.79,189.78,0.2]
[1760907245931,13.62741248,189.79,189.78,0.2]
[1760907246334,41.77639398,189.79,189.78,0.2]
[1760907246538,18.89639398,189.79,189.78,0.2]
[1760907248637,41.77639398,189.79,189.78,0.2]
[1760907248831,18.89639398,189.79,189.78,0.2]
[1760907252742,41.77882151,189.79,189.78,0.2]
[1760907252927,18.89882151,189.79,189.78,0.2]
[1760907253928,33.75647521,189.78,189.77,0.2]
[1760907254133,35.83984001,189.78,189.77,0.2]
[1760907254340,36.54984001,189.78,189.77,0.2]
[1760907254743,41.81909915,189.78,189.77,0.2]
[1760907259627,41.10909915,189.78,189.77,0.2]
[1760907259833,41.81909915,189.78,189.77,0.2]
[1760907264352,10.87647521,189.78,189.77,0.86]
[1760907264554,10.87647521,189.79,189.77,6.12945562]
[1760907264751,10.87647521,189.79,189.78,0.66]
[1760907264956,2.0833648,189.8,189.78,0.66]
[1760907265253,10.87647521,189.8,189.79,0.66]
[1760907266338,22.88,189.8,189.79,0.66]
[1760907269160,33.75647521,189.8,189.78,5.2692162]
[1760907269456,22.88,189.79,189.77,6.12950846]
[1760907270043,22.88,189.79,189.78,0.66]
[1760907270245,35.83984001,189.82,189.78,0.66]
[1760907270463,33.75647521,189.82,189.78,0.66]
[1760907271169,22.88,189.82,189.78,0.66]
[1760907271343,22.88,189.82,189.79,5.2689815]
[1760907271543,22.88,189.82,189.8,0.66]
[1760907271768,22.88,189.83,189.8,0.66]
[1760907271941,2.0833648,189.86,189.8,0.66]
[1760907272355,22.88,189.84,189.8,0.66]
[1760907273378,22.88,189.84,189.81,5.26842632]
[1760907273567,22.88,189.84,189.82,0.66]
[1760907273747,22.88,189.84,189.83,0.66]
[1760907274080,2.0833648,189.86,189.83,0.66]
[1760907274549,2.7933648,189.86,189.81,5.26842632]
[1760907274757,2.7933648,189.86,189.82,0.66]
[1760907276779,3.96132716,189.86,189.83,5.26787125]
[1760907277279,6.51380293,189.94,189.84,0.66]
[1760907277480,0.71,189.96,189.84,1.18675937]
[1760907277664,0.81,189.98,189.86,22.88]
[1760907277978,33.85647521,189.98,189.87,1.18667614]
[1760907278182,0.1,189.98,189.87,23.40667614]
[1760907278486,0.1,189.98,189.88,0.66]
[1760907278776,0.1,189.98,189.89,18.43172362]
[1760907278978,10.97647521,189.98,189.9,0.66]
[1760907279157,33.85647521,189.98,189.9,0.66]
[1760907279355,14.12780237,189.96,189.89,18.43172362]
[1760907279584,0.71,189.95,189.89,18.43172362]
[1760907279878,0.71,189.95,189.9,0.66]
[1760907280086,3.25132716,189.93,189.89,5.26620675]
[1760907280263,0.71,189.92,189.89,5.26620675]
[1760907280658,0.71,189.92,189.87,0.66]
[1760907280878,26.84132716,189.91,189.88,5.26648409]
[1760907281077,26.13132716,189.91,189.88,5.26648409]
[1760907281254,26.84132716,189.91,189.88,5.26648409]
[1760907281467,23.59,189.91,189.88,5.26648409]
[1760907282408,0.71,189.91,189.87,5.26676146]
[1760907282688,3.96132716,189.91,189.87,5.92676146]
[1760907282886,3.96132716,189.91,189.87,5.26676146]
[1760907283097,3.96132716,189.9,189.87,5.26676146]
[1760907283267,3.96132716,189.89,189.87,5.26676146]
[1760907283868,3.25132716,189.89,189.87,5.26676146]
[1760907284086,14.12780237,189.9,189.87,5.26676146]
[1760907284269,14.80780237,189.9,189.87,5.26676146]
[1760907284479,14.80780237,189.9,189.86,5.26703887]
[1760907284679,14.80780237,189.9,189.86,19.13463604]
[1760907285660,0.68,189.89,189.86,5.26703887]
[1760907285931,3.93132716,189.88,189.86,5.26703887]
[1760907287292,10.87647521,189.9,189.87,0.7]
[1760907287600,10.87647521,189.9,189.84,18.43657816]
[1760907287767,10.87647521,189.9,189.85,0.7]
[1760907287967,10.87647521,189.9,189.86,0.7]
[1760907287968,11.55647521,189.9,189.86,0.7]
[1760907288578,14.80780237,189.9,189.84,19.13657816]
[1760907288970,14.80780237,189.9,189.84,80.93657816]
[1760907289286,3.25132716,189.88,189.84,80.23657816]
[1760907289484,0.68,189.87,189.84,80.23657816]
[1760907289695,3.25132716,189.87,189.84,18.43657816]
[1760907289992,3.93132716,189.86,189.84,5.26759376]
[1760907290780,3.93132716,189.85,189.84,5.26759376]
[1760907290981,3.25132716,189.85,189.81,18.43902939]
[1760907291188,3.25132716,189.85,189.81,19.13902939]
[1760907291486,3.25132716,189.86,189.81,19.13902939]
[1760907291871,3.93132716,189.86,189.81,13.17060307]
[1760907292071,3.93132716,189.86,189.81,13.87060307]
[1760907293667,3.93132716,189.86,189.81,13.17060307]
[1760907293872,3.93132716,189.86,189.82,0.7]
[1760907294196,3.93132716,189.86,189.83,5.26787125]
[1760907294369,0.68,189.86,189.83,5.26787125]
[1760907294567,22.88,189.9,189.84,0.7]
[1760907294872,0.68,189.9,189.84,0.7]
[1760907295581,0.68,189.9,189.83,18.43754938]
[1760907295775,3.93132716,189.91,189.84,0.7]
[1760907295971,3.93132716,189.91,189.85,5.2673163]
[1760907296171,3.93132716,189.9,189.85,5.2673163]
[1760907296378,3.93132716,189.89,189.85,5.2673163]
[1760907298698,3.93132716,189.89,189.83,13.16967813]
[1760907298896,3.25132716,189.89,189.84,0.7]
[1760907299107,26.13132716,189.9,189.85,0.7]
[1760907299271,0.68,189.92,189.86,0.7]
[1760907299801,3.25132716,189.9,189.86,0.7]
[1760907300101,3.25132716,189.9,189.83,26.42918396]
[1760907300280,0.68,189.92,189.86,0.7]
[1760907300480,3.25132716,189.94,189.86,0.7]
[1760907300681,3.25132716,189.93,189.87,18.43366513]
[1760907300881,3.25132716,189.93,189.88,0.7]
[1760907301216,0.1,189.98,189.89,0.7]
[1760907301387,0.68,189.97,189.88,0.7]
[1760907301593,3.25132716,189.93,189.88,0.7]
[1760907301795,0.68,189.95,189.89,0.7]
[1760907302001,3.25132716,189.94,189.89,0.7]
[1760907302194,0.68,189.95,189.9,0.7]
[1760907302501,3.25132716,189.94,189.91,0.7]
[1760907302700,0.1,189.98,189.92,0.7]
[1760907302999,3.25132716,189.97,189.93,18.42784182]
[1760907303188,3.25132716,189.97,189.93,19.12784182]
[1760907303494,3.93132716,189.97,189.93,18.42784182]
[1760907304090,3.93132716,189.97,189.93,19.12784182]
[1760907304291,22.98,189.98,189.94,0.7]
[1760907304497,23.66,189.98,189.94,0.7]
[1760907304685,0.1,189.98,189.94,0.7]
[1760907304892,0.1,189.98,189.95,18.42590155]
[1760907305094,0.1,189.98,189.95,19.12590155]
[1760907305495,0.1,189.98,189.96,0.7]
[1760907306298,0.1,189.98,189.97,0.7]
[1760907306696,0.1,189.98,189.97,1.2263989]
[1760907307015,0.1,189.98,189.97,5.96398905]
[1760907307303,1e-08,189.99,189.97,29.37038795]
[1760907307504,1e-08,189.99,189.98,0.7]
[1760907307707,1e-08,190.0,189.98,0.7]
[1760907307922,1e-08,190.0,189.99,0.52634349]
[1760907308440,1e-08,190.0,189.99,24.10634349]
[1760907309117,1e-08,190.0,189.99,29.3697784]
[1760907309285,1e-08,190.0,189.99,28.84343491]
[1760907310605,1e-08,190.03,189.99,42.0020222]
[1760907310812,1e-08,190.03,190.0,1.22631578]
[1760907311199,1e-08,190.03,190.01,5.9628809]
[1760907311704,1e-08,190.03,190.02,0.67]
[1760907312517,1e-08,190.03,190.01,5.2628809]